[Event "January 2 Late 2024"]
[Site "https://www.chess.com"]
[Date "2024.01.02"]
[Round "1"]
[White "Suich, Peter D"]
[Black "Troff, Kayden"]
[Result "0-1"]
[Board "80"]
[TimeControl "180+1"]
[WhiteFideId "2050366"]
[BlackFideId "2047896"]
[WhiteElo "2431"]
[BlackElo "2781"]
[WhiteTeam "USA"]
[BlackTeam "USA"]
[WhiteClock "0:00:15"]
[BlackClock "0:00:09"]

1. d4 {[%clk 0:03:00]}  Nf6 {[%clk 0:02:52]} 2. c4 {[%clk 0:03:01]}  g6 {[%clk 0:02:52]} 3. g3 {[%clk 0:03:01]}  c6 {[%clk 0:02:45]} 4. Qa4 {[%clk 0:02:55]}  d5 {[%clk 0:02:38]} 5. cxd5 {[%clk 0:02:55]}  Nxd5 {[%clk 0:02:30]} 6. Bg2 {[%clk 0:02:54]}  Bg7 {[%clk 0:02:30]} 7. Nf3 {[%clk 0:02:54]}  O-O {[%clk 0:02:30]} 8. O-O {[%clk 0:02:54]}  Nd7 {[%clk 0:02:16]} 9. Nc3 {[%clk 0:02:52]}  Qb6 {[%clk 0:02:04]} 10. Nd2 {[%clk 0:02:37]}  Qxd4 {[%clk 0:01:44]} 11. Qxd4 {[%clk 0:02:33]}  Bxd4 {[%clk 0:01:45]} 12. Nxd5 {[%clk 0:02:33]}  cxd5 {[%clk 0:01:45]} 13. Bxd5 {[%clk 0:02:33]}  Nb6 {[%clk 0:01:41]} 14. Bg2 {[%clk 0:02:32]}  Be6 {[%clk 0:01:35]} 15. Nb3 {[%clk 0:02:29]}  Bf6 {[%clk 0:01:25]} 16. Bxb7 {[%clk 0:02:23]}  Rab8 {[%clk 0:01:24]} 17. Bg2 {[%clk 0:02:22]}  Na4 {[%clk 0:01:12]} 18. Be3 {[%clk 0:02:13]}  Bxb2 {[%clk 0:00:25]} 19. Bxa7 {[%clk 0:02:12]}  Rbc8 {[%clk 0:00:22]} 20. Rab1 {[%clk 0:02:04]}  Bf6 {[%clk 0:00:21]} 21. Rbc1 {[%clk 0:02:01]}  Nc3 {[%clk 0:00:20]} 22. Bf3 {[%clk 0:01:57]}  Nxa2 {[%clk 0:00:20]} 23. Rxc8 {[%clk 0:01:57]}  Rxc8 {[%clk 0:00:21]} 24. Nd4 {[%clk 0:01:48]}  Bc4 {[%clk 0:00:21]} 25. Re1 {[%clk 0:01:23]}  Rc7 {[%clk 0:00:17]} 26. Bb6 {[%clk 0:01:23]}  Rd7 {[%clk 0:00:18]} 27. e3 {[%clk 0:01:23]}  Bd5 {[%clk 0:00:13]} 28. Bg4 {[%clk 0:01:22]}  e6 {[%clk 0:00:12]} 29. Bc5 {[%clk 0:01:20]}  h5 {[%clk 0:00:12]} 30. Bh3 {[%clk 0:01:15]}  Nc3 {[%clk 0:00:12]} 31. Bg2 {[%clk 0:01:12]}  Ne4 {[%clk 0:00:12]} 32. Rc1 {[%clk 0:01:10]}  Nxc5 {[%clk 0:00:12]} 33. Rxc5 {[%clk 0:01:01]}  Bxg2 {[%clk 0:00:12]} 34. Kxg2 {[%clk 0:00:59]}  Bxd4 {[%clk 0:00:12]} 35. exd4 {[%clk 0:00:59]}  Rxd4 {[%clk 0:00:13]} 36. Rc8+ {[%clk 0:00:59]}  Kg7 {[%clk 0:00:13]} 37. h4 {[%clk 0:00:59]}  Rd5 {[%clk 0:00:13]} 38. Rc7 {[%clk 0:00:59]}  Rf5 {[%clk 0:00:14]} 39. Rb7 {[%clk 0:01:00]}  Kf6 {[%clk 0:00:13]} 40. Rc7 {[%clk 0:01:00]}  Rd5 {[%clk 0:00:14]} 41. Rb7 {[%clk 0:01:01]}  Rd8 {[%clk 0:00:14]} 42. Rc7 {[%clk 0:01:01]}  Re8 {[%clk 0:00:15]} 43. Rb7 {[%clk 0:01:01]}  Re7 {[%clk 0:00:15]} 44. Rb6 {[%clk 0:01:01]}  Rd7 {[%clk 0:00:15]} 45. Rc6 {[%clk 0:01:01]}  Kf5 {[%clk 0:00:16]} 46. Rb6 {[%clk 0:01:00]}  e5 {[%clk 0:00:16]} 47. Rb5 {[%clk 0:01:00]}  f6 {[%clk 0:00:16]} 48. Ra5 {[%clk 0:01:00]}  Rd6 {[%clk 0:00:17]} 49. Rb5 {[%clk 0:01:00]}  Ke4 {[%clk 0:00:17]} 50. Rb4+ {[%clk 0:00:58]}  Kd5 {[%clk 0:00:18]} 51. Rb5+ {[%clk 0:00:58]}  Ke6 {[%clk 0:00:18]} 52. Ra5 {[%clk 0:00:58]}  Kf5 {[%clk 0:00:17]} 53. Rb5 {[%clk 0:00:58]}  g5 {[%clk 0:00:16]} 54. hxg5 {[%clk 0:00:57]}  Kxg5 {[%clk 0:00:17]} 55. Ra5 {[%clk 0:00:53]}  Rd4 {[%clk 0:00:16]} 56. Rb5 {[%clk 0:00:53]}  Rg4 {[%clk 0:00:16]} 57. Ra5 {[%clk 0:00:53]}  h4 {[%clk 0:00:16]} 58. Kf3 {[%clk 0:00:53]}  hxg3 {[%clk 0:00:16]} 59. fxg3 {[%clk 0:00:53]}  Rb4 {[%clk 0:00:17]} 60. Ra3 {[%clk 0:00:52]}  Rd4 {[%clk 0:00:16]} 61. Rb3 {[%clk 0:00:52]}  Kf5 {[%clk 0:00:17]} 62. Rc3 {[%clk 0:00:51]}  Rb4 {[%clk 0:00:17]} 63. Ra3 {[%clk 0:00:51]}  Rd4 {[%clk 0:00:17]} 64. Rb3 {[%clk 0:00:51]}  Kg5 {[%clk 0:00:11]} 65. Rb5 {[%clk 0:00:49]}  Rd3+ {[%clk 0:00:10]} 66. Kf2 {[%clk 0:00:49]}  Kf5 {[%clk 0:00:10]} 67. Rb4 {[%clk 0:00:49]}  Kg5 {[%clk 0:00:09]} 68. Ra4 {[%clk 0:00:49]}  f5 {[%clk 0:00:09]} 69. Ra8 {[%clk 0:00:49]}  Rd2+ {[%clk 0:00:09]} 70. Ke3 {[%clk 0:00:47]}  Rb2 {[%clk 0:00:09]} 71. Rg8+ {[%clk 0:00:46]}  Kf6 {[%clk 0:00:10]} 72. Rf8+ {[%clk 0:00:46]}  Kg6 {[%clk 0:00:10]} 73. Re8 {[%clk 0:00:45]}  e4 {[%clk 0:00:10]} 74. Rg8+ {[%clk 0:00:41]}  Kf6 {[%clk 0:00:10]} 75. Rf8+ {[%clk 0:00:41]}  Kg6 {[%clk 0:00:10]} 76. Rg8+ {[%clk 0:00:42]}  Kf7 {[%clk 0:00:10]} 77. Rg5 {[%clk 0:00:37]}  Kf6 {[%clk 0:00:09]} 78. Rg8 {[%clk 0:00:36]}  Rg2 {[%clk 0:00:10]} 79. Rf8+ {[%clk 0:00:32]}  Ke6 {[%clk 0:00:10]} 80. Kf4 {[%clk 0:00:31]}  Rf2+ {[%clk 0:00:10]} 81. Kg5 {[%clk 0:00:30]}  Rf3 {[%clk 0:00:10]} 82. Re8+ {[%clk 0:00:30]}  Kd5 {[%clk 0:00:09]} 83. Rd8+ {[%clk 0:00:29]}  Ke5 {[%clk 0:00:09]} 84. Re8+ {[%clk 0:00:29]}  Kd4 {[%clk 0:00:09]} 85. Rd8+ {[%clk 0:00:29]}  Ke3 {[%clk 0:00:09]} 86. Rd5 {[%clk 0:00:29]}  Kf2 {[%clk 0:00:09]} 87. Rd2+ {[%clk 0:00:25]}  Kxg3 {[%clk 0:00:08]} 88. Rd8 {[%clk 0:00:19]}  e3 {[%clk 0:00:09]} 89. Re8 {[%clk 0:00:15]}  Kf2 {[%clk 0:00:09]} 0-1

[Event "January 2 Late 2024"]
[Site "https://www.chess.com"]
[Date "2024.01.02"]
[Round "1"]
[White "Krzyzanowski, Marcin"]
[Black "Xie, Bryan"]
[Result "1-0"]
[Board "81"]
[TimeControl "180+1"]
[WhiteFideId "1132199"]
[BlackFideId "30941296"]
[WhiteElo "2779"]
[BlackElo "2429"]
[WhiteTeam "POL"]
[BlackTeam "USA"]
[WhiteClock "0:00:06"]
[BlackClock "0:00:00"]

1. e4 {[%clk 0:03:00]}  c5 {[%clk 0:02:57]} 2. Nf3 {[%clk 0:03:00]}  e6 {[%clk 0:02:57]} 3. c3 {[%clk 0:02:58]}  Nf6 {[%clk 0:02:47]} 4. e5 {[%clk 0:02:57]}  Nd5 {[%clk 0:02:47]} 5. d4 {[%clk 0:02:58]}  cxd4 {[%clk 0:02:48]} 6. cxd4 {[%clk 0:02:58]}  d6 {[%clk 0:02:49]} 7. Bd3 {[%clk 0:02:56]}  Be7 {[%clk 0:02:49]} 8. O-O {[%clk 0:02:55]}  O-O {[%clk 0:02:50]} 9. a3 {[%clk 0:02:56]}  Bd7 {[%clk 0:02:49]} 10. Qe2 {[%clk 0:02:55]}  Bc6 {[%clk 0:02:49]} 11. Nc3 {[%clk 0:02:50]}  Nd7 {[%clk 0:02:43]} 12. Ne4 {[%clk 0:02:48]}  dxe5 {[%clk 0:02:37]} 13. dxe5 {[%clk 0:02:49]}  h6 {[%clk 0:02:20]} 14. Rd1 {[%clk 0:02:39]}  Qc7 {[%clk 0:01:56]} 15. Ng3 {[%clk 0:02:24]}  Rac8 {[%clk 0:01:33]} 16. Bxh6 {[%clk 0:02:08]}  gxh6 {[%clk 0:01:32]} 17. Qe4 {[%clk 0:02:06]}  N5f6 {[%clk 0:01:32]} 18. Qh4 {[%clk 0:01:43]}  Nxe5 {[%clk 0:01:20]} 19. Nxe5 {[%clk 0:01:38]}  Qxe5 {[%clk 0:01:11]} 20. Qxh6 {[%clk 0:01:39]}  Rfd8 {[%clk 0:01:04]} 21. Re1 {[%clk 0:01:38]}  Qd5 {[%clk 0:00:45]} 22. Ne4 {[%clk 0:00:27]}  Qxd3 {[%clk 0:00:43]} 23. Nxf6+ {[%clk 0:00:26]}  Bxf6 {[%clk 0:00:44]} 24. Qxf6 {[%clk 0:00:27]}  Qg6 {[%clk 0:00:30]} 25. Qxg6+ {[%clk 0:00:27]}  fxg6 {[%clk 0:00:31]} 26. Rxe6 {[%clk 0:00:27]}  Kf7 {[%clk 0:00:15]} 27. Re3 {[%clk 0:00:27]}  Rd2 {[%clk 0:00:13]} 28. b4 {[%clk 0:00:27]}  Rcd8 {[%clk 0:00:13]} 29. h4 {[%clk 0:00:21]}  Rd1+ {[%clk 0:00:07]} 30. Rxd1 {[%clk 0:00:22]}  Rxd1+ {[%clk 0:00:08]} 31. Kh2 {[%clk 0:00:23]}  Kf6 {[%clk 0:00:07]} 32. Kg3 {[%clk 0:00:21]}  Kf5 {[%clk 0:00:07]} 33. f3 {[%clk 0:00:21]}  Rc1 {[%clk 0:00:07]} 34. f4 {[%clk 0:00:11]}  Rc4 {[%clk 0:00:07]} 35. Re5+ {[%clk 0:00:11]}  Kf6 {[%clk 0:00:07]} 36. Re3 {[%clk 0:00:09]}  Bb5 {[%clk 0:00:06]} 37. Kh3 {[%clk 0:00:08]}  Rd4 {[%clk 0:00:06]} 38. g3 {[%clk 0:00:08]}  Rd3 {[%clk 0:00:07]} 39. Re5 {[%clk 0:00:09]}  a6 {[%clk 0:00:06]} 40. h5 {[%clk 0:00:09]}  gxh5 {[%clk 0:00:05]} 41. Kh4 {[%clk 0:00:09]}  Rxa3 {[%clk 0:00:06]} 42. Rxh5 {[%clk 0:00:08]}  Ra1 {[%clk 0:00:06]} 43. Rh6+ {[%clk 0:00:08]}  Kg7 {[%clk 0:00:06]} 44. Rd6 {[%clk 0:00:08]}  Be2 {[%clk 0:00:04]} 45. Kg5 {[%clk 0:00:08]}  Rb1 {[%clk 0:00:05]} 46. Rd7+ {[%clk 0:00:09]}  Kf8 {[%clk 0:00:05]} 47. f5 {[%clk 0:00:09]}  Rxb4 {[%clk 0:00:04]} 48. Kf6 {[%clk 0:00:07]}  Ke8 {[%clk 0:00:05]} 49. Re7+ {[%clk 0:00:07]}  Kf8 {[%clk 0:00:02]} 50. Rxe2 {[%clk 0:00:08]}  Rg4 {[%clk 0:00:02]} 51. Rc2 {[%clk 0:00:07]}  Ke8 {[%clk 0:00:01]} 52. Re2+ {[%clk 0:00:06]}  Kf8 {[%clk 0:00:01]} 53. Re3 {[%clk 0:00:06]}  b5 {[%clk 0:00:00]} 54. Ra3 {[%clk 0:00:06]} 1-0

[Event "January 2 Late 2024"]
[Site "https://www.chess.com"]
[Date "2024.01.02"]
[Round "1"]
[White "Seletsky, Grigory"]
[Black "Wieczorek, Oskar"]
[Result "0-1"]
[Board "82"]
[TimeControl "180+1"]
[WhiteFideId "14112191"]
[BlackFideId "1133950"]
[WhiteElo "2429"]
[BlackElo "2768"]
[WhiteTeam "UKR"]
[BlackTeam "POL"]
[WhiteClock "0:00:00"]
[BlackClock "0:00:05"]

1. e4 {[%clk 0:02:32]}  c5 {[%clk 0:02:59]} 2. Nc3 {[%clk 0:02:17]}  e6 {[%clk 0:02:58]} 3. f4 {[%clk 0:02:16]}  Nc6 {[%clk 0:02:59]} 4. Nf3 {[%clk 0:02:17]}  Nge7 {[%clk 0:02:58]} 5. Bb5 {[%clk 0:02:13]}  a6 {[%clk 0:02:58]} 6. Bxc6 {[%clk 0:02:13]}  Nxc6 {[%clk 0:02:59]} 7. d3 {[%clk 0:02:12]}  Be7 {[%clk 0:02:59]} 8. O-O {[%clk 0:02:13]}  d5 {[%clk 0:02:59]} 9. Qe2 {[%clk 0:02:05]}  O-O {[%clk 0:02:59]} 10. e5 {[%clk 0:02:04]}  f5 {[%clk 0:02:53]} 11. Nd1 {[%clk 0:02:03]}  d4 {[%clk 0:02:49]} 12. c4 {[%clk 0:02:03]}  b5 {[%clk 0:02:49]} 13. b3 {[%clk 0:02:01]}  Bb7 {[%clk 0:02:47]} 14. Nf2 {[%clk 0:01:59]}  Kh8 {[%clk 0:02:47]} 15. Bd2 {[%clk 0:02:00]}  Qd7 {[%clk 0:02:45]} 16. a4 {[%clk 0:01:57]}  bxc4 {[%clk 0:02:43]} 17. dxc4 {[%clk 0:01:55]}  Nb4 {[%clk 0:02:42]} 18. Nd3 {[%clk 0:01:55]}  Nxd3 {[%clk 0:02:42]} 19. Qxd3 {[%clk 0:01:55]}  Be4 {[%clk 0:02:42]} 20. Qe2 {[%clk 0:01:56]}  d3 {[%clk 0:02:42]} 21. Qe3 {[%clk 0:01:55]}  Rab8 {[%clk 0:02:42]} 22. Rab1 {[%clk 0:01:52]}  Rb7 {[%clk 0:02:26]} 23. Rfc1 {[%clk 0:01:52]}  Rfb8 {[%clk 0:02:23]} 24. Rc3 {[%clk 0:01:51]}  Bd8 {[%clk 0:02:17]} 25. Ng5 {[%clk 0:01:30]}  Bxg5 {[%clk 0:01:27]} 26. fxg5 {[%clk 0:01:27]}  Qd4 {[%clk 0:01:25]} 27. Rb2 {[%clk 0:01:22]}  Qxe5 {[%clk 0:01:22]} 28. Qf4 {[%clk 0:01:14]}  Qd4+ {[%clk 0:01:20]} 29. Qe3 {[%clk 0:01:15]}  e5 {[%clk 0:01:16]} 30. Kf1 {[%clk 0:01:14]}  f4 {[%clk 0:01:08]} 31. Qf2 {[%clk 0:01:14]}  Bg6 {[%clk 0:01:02]} 32. h4 {[%clk 0:01:14]}  Rf8 {[%clk 0:00:47]} 33. h5 {[%clk 0:01:07]}  Bxh5 {[%clk 0:00:44]} 34. Qxd4 {[%clk 0:01:08]}  Be2+ {[%clk 0:00:44]} 35. Kf2 {[%clk 0:01:04]}  cxd4 {[%clk 0:00:45]} 36. Rc1 {[%clk 0:01:01]}  e4 {[%clk 0:00:45]} 37. Ke1 {[%clk 0:01:01]}  e3 {[%clk 0:00:45]} 38. c5 {[%clk 0:00:58]}  exd2+ {[%clk 0:00:42]} 39. Kxd2 {[%clk 0:00:59]}  a5 {[%clk 0:00:42]} 40. c6 {[%clk 0:00:58]}  Rb6 {[%clk 0:00:37]} 41. b4 {[%clk 0:00:58]}  axb4 {[%clk 0:00:32]} 42. a5 {[%clk 0:00:57]}  Ra6 {[%clk 0:00:26]} 43. c7 {[%clk 0:00:57]}  Rc8 {[%clk 0:00:26]} 44. Rc5 {[%clk 0:00:54]}  Kg8 {[%clk 0:00:11]} 45. Rxb4 {[%clk 0:00:54]}  Raa8 {[%clk 0:00:11]} 46. Rxd4 {[%clk 0:00:53]}  Kf7 {[%clk 0:00:11]} 47. Rxf4+ {[%clk 0:00:53]}  Kg6 {[%clk 0:00:11]} 48. Rd4 {[%clk 0:00:50]}  Ra6 {[%clk 0:00:10]} 49. Rd8 {[%clk 0:00:49]}  Raa8 {[%clk 0:00:11]} 50. Rd6+ {[%clk 0:00:48]}  Kf7 {[%clk 0:00:11]} 51. Rd7+ {[%clk 0:00:48]}  Ke6 {[%clk 0:00:12]} 52. Rxg7 {[%clk 0:00:48]}  Kd6 {[%clk 0:00:12]} 53. Rb5 {[%clk 0:00:39]}  Rxc7 {[%clk 0:00:10]} 54. Rb6+ {[%clk 0:00:39]}  Rc6 {[%clk 0:00:11]} 55. Rxh7 {[%clk 0:00:35]}  Rxb6 {[%clk 0:00:09]} 56. axb6 {[%clk 0:00:35]}  Ra2+ {[%clk 0:00:10]} 57. Ke3 {[%clk 0:00:32]}  Bf1 {[%clk 0:00:10]} 58. b7 {[%clk 0:00:30]}  Rb2 {[%clk 0:00:10]} 59. g6 {[%clk 0:00:21]}  d2 {[%clk 0:00:10]} 60. b8=Q+ {[%clk 0:00:19]}  Rxb8 {[%clk 0:00:10]} 61. Kxd2 {[%clk 0:00:20]}  Rg8 {[%clk 0:00:09]} 62. Rh6 {[%clk 0:00:16]}  Bxg2 {[%clk 0:00:09]} 63. Ke3 {[%clk 0:00:16]}  Ke5 {[%clk 0:00:09]} 64. Kf2 {[%clk 0:00:16]}  Be4 {[%clk 0:00:08]} 65. Ke3 {[%clk 0:00:16]}  Bxg6 {[%clk 0:00:08]} 66. Rh4 {[%clk 0:00:13]}  Ra8 {[%clk 0:00:08]} 67. Ke2 {[%clk 0:00:11]}  Ra3 {[%clk 0:00:08]} 68. Rb4 {[%clk 0:00:10]}  Be4 {[%clk 0:00:08]} 69. Rb8 {[%clk 0:00:08]}  Kd4 {[%clk 0:00:08]} 70. Rd8+ {[%clk 0:00:07]}  Bd5 {[%clk 0:00:09]} 71. Re8 {[%clk 0:00:06]}  Ra2+ {[%clk 0:00:09]} 72. Kf1 {[%clk 0:00:07]}  Rb2 {[%clk 0:00:06]} 73. Ke1 {[%clk 0:00:06]}  Kd3 {[%clk 0:00:05]} 74. Kf1 {[%clk 0:00:05]}  Be4 {[%clk 0:00:05]} 75. Rh8 {[%clk 0:00:03]}  Ke3 {[%clk 0:00:05]} 76. Rh3+ {[%clk 0:00:03]}  Bf3 {[%clk 0:00:05]} 77. Kg1 {[%clk 0:00:03]}  Rg2+ {[%clk 0:00:05]} 78. Kf1 {[%clk 0:00:00]}  Ra2 {[%clk 0:00:05]} 0-1

[Event "January 2 Late 2024"]
[Site "https://www.chess.com"]
[Date "2024.01.02"]
[Round "1"]
[White "Song, Ethan"]
[Black "Bellissimo, Joseph F."]
[Result "1-0"]
[Board "85"]
[TimeControl "180+1"]
[WhiteFideId "62900412"]
[BlackFideId "2609843"]
[WhiteElo "2744"]
[BlackElo "2425"]
[WhiteTeam "CAN"]
[BlackTeam "CAN"]
[WhiteClock "0:01:36"]
[BlackClock "0:00:54"]

1. e4 {[%clk 0:03:00]}  e6 {[%clk 0:02:59]} 2. d4 {[%clk 0:03:00]}  d5 {[%clk 0:03:00]} 3. Nd2 {[%clk 0:03:00]}  Nf6 {[%clk 0:03:00]} 4. e5 {[%clk 0:03:00]}  Nfd7 {[%clk 0:03:01]} 5. Bd3 {[%clk 0:03:01]}  c5 {[%clk 0:03:02]} 6. c3 {[%clk 0:03:01]}  Nc6 {[%clk 0:03:02]} 7. Ne2 {[%clk 0:03:00]}  cxd4 {[%clk 0:03:03]} 8. cxd4 {[%clk 0:03:00]}  f6 {[%clk 0:03:03]} 9. exf6 {[%clk 0:02:58]}  Qxf6 {[%clk 0:03:04]} 10. Nf3 {[%clk 0:02:58]}  h6 {[%clk 0:03:04]} 11. O-O {[%clk 0:02:58]}  Bd6 {[%clk 0:03:04]} 12. Ng3 {[%clk 0:02:56]}  O-O {[%clk 0:03:05]} 13. Bc2 {[%clk 0:02:55]}  Rd8 {[%clk 0:03:04]} 14. Qd3 {[%clk 0:02:54]}  Nf8 {[%clk 0:03:04]} 15. a3 {[%clk 0:02:54]}  Bd7 {[%clk 0:03:04]} 16. b4 {[%clk 0:02:52]}  Be8 {[%clk 0:03:02]} 17. Bb2 {[%clk 0:02:47]}  Bg6 {[%clk 0:02:58]} 18. Qd1 {[%clk 0:02:47]}  Bxc2 {[%clk 0:02:59]} 19. Qxc2 {[%clk 0:02:48]}  Rac8 {[%clk 0:02:59]} 20. Qe2 {[%clk 0:02:48]}  Ng6 {[%clk 0:02:55]} 21. Rfe1 {[%clk 0:02:44]}  Nf4 {[%clk 0:02:55]} 22. Qe3 {[%clk 0:02:41]}  Ne7 {[%clk 0:02:48]} 23. Rac1 {[%clk 0:02:41]}  Nf5 {[%clk 0:02:39]} 24. Nxf5 {[%clk 0:02:40]}  Qxf5 {[%clk 0:02:40]} 25. Rxc8 {[%clk 0:02:28]}  Rxc8 {[%clk 0:02:40]} 26. g3 {[%clk 0:02:13]}  Nd3 {[%clk 0:02:31]} 27. Qxe6+ {[%clk 0:02:10]}  Qxe6 {[%clk 0:02:28]} 28. Rxe6 {[%clk 0:02:11]}  Bxb4 {[%clk 0:02:17]} 29. axb4 {[%clk 0:02:07]}  Nxb2 {[%clk 0:02:17]} 30. Re7 {[%clk 0:02:05]}  Rb8 {[%clk 0:01:46]} 31. Rd7 {[%clk 0:02:00]}  Nd3 {[%clk 0:01:41]} 32. b5 {[%clk 0:02:00]}  Nb4 {[%clk 0:01:41]} 33. Ne5 {[%clk 0:01:59]}  a5 {[%clk 0:01:37]} 34. bxa6 {[%clk 0:01:57]}  bxa6 {[%clk 0:01:37]} 35. Kg2 {[%clk 0:01:56]}  Rb5 {[%clk 0:01:36]} 36. Ra7 {[%clk 0:01:50]}  a5 {[%clk 0:01:32]} 37. h4 {[%clk 0:01:46]}  Nc2 {[%clk 0:01:25]} 38. Ra8+ {[%clk 0:01:40]}  Kh7 {[%clk 0:01:24]} 39. h5 {[%clk 0:01:40]}  g5 {[%clk 0:01:13]} 40. hxg6+ {[%clk 0:01:38]}  Kg7 {[%clk 0:01:13]} 41. Ra7+ {[%clk 0:01:38]}  Kg8 {[%clk 0:01:12]} 42. Ng4 {[%clk 0:01:38]}  Ne1+ {[%clk 0:00:56]} 43. Kf1 {[%clk 0:01:36]}  Rb1 {[%clk 0:00:55]} 44. Nxh6+ {[%clk 0:01:35]}  Kf8 {[%clk 0:00:54]} 45. g7+ {[%clk 0:01:36]} 1-0

[Event "January 2 Late 2024"]
[Site "https://www.chess.com"]
[Date "2024.01.02"]
[Round "1"]
[White "Perossa, Nicolas"]
[Black "Tristan, Leonardo"]
[Result "0-1"]
[Board "86"]
[TimeControl "180+1"]
[WhiteFideId "2850520"]
[BlackFideId "113816"]
[WhiteElo "2422"]
[BlackElo "2743"]
[WhiteTeam "ITA"]
[BlackTeam "ARG"]
[WhiteClock "0:00:00"]
[BlackClock "0:00:08"]

1. e4 {[%clk 0:03:00]}  d5 {[%clk 0:02:59]} 2. exd5 {[%clk 0:03:01]}  Qxd5 {[%clk 0:03:00]} 3. Nc3 {[%clk 0:03:01]}  Qa5 {[%clk 0:03:01]} 4. d4 {[%clk 0:03:01]}  Nf6 {[%clk 0:03:01]} 5. Bd2 {[%clk 0:02:59]}  Bg4 {[%clk 0:02:53]} 6. Be2 {[%clk 0:02:58]}  Bxe2 {[%clk 0:02:52]} 7. Qxe2 {[%clk 0:02:58]}  e6 {[%clk 0:02:49]} 8. O-O-O {[%clk 0:02:56]}  Bb4 {[%clk 0:02:43]} 9. a3 {[%clk 0:02:44]}  Bxc3 {[%clk 0:02:43]} 10. Bxc3 {[%clk 0:02:45]}  Qa6 {[%clk 0:02:44]} 11. Qf3 {[%clk 0:02:08]}  Nc6 {[%clk 0:02:04]} 12. Ne2 {[%clk 0:02:07]}  O-O-O {[%clk 0:02:02]} 13. Nf4 {[%clk 0:01:51]}  Ne7 {[%clk 0:01:36]} 14. Qe2 {[%clk 0:01:08]}  Qxe2 {[%clk 0:01:18]} 15. Nxe2 {[%clk 0:01:08]}  Nf5 {[%clk 0:01:08]} 16. Be1 {[%clk 0:00:34]}  Rd7 {[%clk 0:01:04]} 17. h3 {[%clk 0:00:28]}  Rhd8 {[%clk 0:01:04]} 18. c3 {[%clk 0:00:26]}  c5 {[%clk 0:01:04]} 19. g4 {[%clk 0:00:26]}  Ne7 {[%clk 0:00:35]} 20. Bd2 {[%clk 0:00:23]}  cxd4 {[%clk 0:00:32]} 21. Nxd4 {[%clk 0:00:24]}  Ne4 {[%clk 0:00:29]} 22. Be3 {[%clk 0:00:24]}  Nd5 {[%clk 0:00:30]} 23. Rhf1 {[%clk 0:00:12]}  e5 {[%clk 0:00:21]} 24. Nc2 {[%clk 0:00:12]}  Nxe3 {[%clk 0:00:17]} 25. fxe3 {[%clk 0:00:13]}  Rxd1+ {[%clk 0:00:15]} 26. Rxd1 {[%clk 0:00:13]}  Rxd1+ {[%clk 0:00:16]} 27. Kxd1 {[%clk 0:00:14]}  Nf2+ {[%clk 0:00:16]} 28. Ke2 {[%clk 0:00:15]}  Nxh3 {[%clk 0:00:17]} 29. c4 {[%clk 0:00:12]}  Ng5 {[%clk 0:00:16]} 30. b4 {[%clk 0:00:11]}  Kc7 {[%clk 0:00:16]} 31. a4 {[%clk 0:00:11]}  b6 {[%clk 0:00:14]} 32. b5 {[%clk 0:00:10]}  Ne6 {[%clk 0:00:12]} 33. Nb4 {[%clk 0:00:06]}  Nc5 {[%clk 0:00:11]} 34. Nc6 {[%clk 0:00:05]}  f6 {[%clk 0:00:07]} 35. a5 {[%clk 0:00:06]}  a6 {[%clk 0:00:04]} 36. axb6+ {[%clk 0:00:04]}  Kxb6 {[%clk 0:00:04]} 37. Ne7 {[%clk 0:00:03]}  axb5 {[%clk 0:00:04]} 38. cxb5 {[%clk 0:00:04]}  Kxb5 {[%clk 0:00:05]} 39. Nf5 {[%clk 0:00:05]}  Ne6 {[%clk 0:00:05]} 40. Nd6+ {[%clk 0:00:04]}  Kc6 {[%clk 0:00:05]} 41. Nf5 {[%clk 0:00:04]}  Kd7 {[%clk 0:00:05]} 42. Ng3 {[%clk 0:00:05]}  Ke7 {[%clk 0:00:05]} 43. Nh5 {[%clk 0:00:05]}  Kf7 {[%clk 0:00:06]} 44. Ng3 {[%clk 0:00:06]}  Kg6 {[%clk 0:00:05]} 45. Ne4 {[%clk 0:00:04]}  Ng5 {[%clk 0:00:06]} 46. Nd6 {[%clk 0:00:04]}  Nf7 {[%clk 0:00:06]} 47. Ne4 {[%clk 0:00:03]}  Nd8 {[%clk 0:00:06]} 48. Kf3 {[%clk 0:00:03]}  Ne6 {[%clk 0:00:07]} 49. Kg3 {[%clk 0:00:04]}  Kf7 {[%clk 0:00:05]} 50. Nd6+ {[%clk 0:00:04]}  Ke7 {[%clk 0:00:05]} 51. Nf5+ {[%clk 0:00:05]}  Kf8 {[%clk 0:00:05]} 52. Nd6 {[%clk 0:00:05]}  Ng5 {[%clk 0:00:06]} 53. Nf5 {[%clk 0:00:05]}  g6 {[%clk 0:00:06]} 54. Nd6 {[%clk 0:00:04]}  Ke7 {[%clk 0:00:07]} 55. Nc4 {[%clk 0:00:04]}  Ke6 {[%clk 0:00:07]} 56. Nd2 {[%clk 0:00:04]}  Kd5 {[%clk 0:00:08]} 57. Nf1 {[%clk 0:00:04]}  Ke4 {[%clk 0:00:08]} 58. Kf2 {[%clk 0:00:05]}  Kd3 {[%clk 0:00:06]} 59. Ng3 {[%clk 0:00:04]}  Ne4+ {[%clk 0:00:07]} 60. Nxe4 {[%clk 0:00:03]}  Kxe4 {[%clk 0:00:07]} 61. Ke2 {[%clk 0:00:00]}  h5 {[%clk 0:00:08]} 0-1

[Event "January 2 Late 2024"]
[Site "https://www.chess.com"]
[Date "2024.01.02"]
[Round "1"]
[White "Rees, Ioan"]
[Black "Subelj, Jan"]
[Result "0-1"]
[Board "88"]
[TimeControl "180+1"]
[WhiteFideId "1801236"]
[BlackFideId "14618583"]
[WhiteElo "2420"]
[BlackElo "2742"]
[WhiteTeam "WLS"]
[BlackTeam "SLO"]
[WhiteClock "0:01:30"]
[BlackClock "0:02:06"]

1. e4 {[%clk 0:03:00]}  Nf6 {[%clk 0:02:56]} 2. e5 {[%clk 0:02:58]}  Nd5 {[%clk 0:02:56]} 3. Nc3 {[%clk 0:02:59]}  Nxc3 {[%clk 0:02:55]} 4. dxc3 {[%clk 0:03:00]}  d6 {[%clk 0:02:56]} 5. Bf4 {[%clk 0:03:01]}  Nc6 {[%clk 0:02:52]} 6. Nf3 {[%clk 0:02:54]}  Bg4 {[%clk 0:02:48]} 7. Bb5 {[%clk 0:02:54]}  e6 {[%clk 0:02:45]} 8. h3 {[%clk 0:02:50]}  Bh5 {[%clk 0:02:41]} 9. g4 {[%clk 0:02:48]}  Bg6 {[%clk 0:02:39]} 10. Qe2 {[%clk 0:02:47]}  a6 {[%clk 0:02:37]} 11. Bxc6+ {[%clk 0:02:45]}  bxc6 {[%clk 0:02:38]} 12. O-O-O {[%clk 0:02:38]}  d5 {[%clk 0:02:36]} 13. h4 {[%clk 0:02:24]}  h5 {[%clk 0:02:36]} 14. Ng5 {[%clk 0:02:18]}  hxg4 {[%clk 0:02:34]} 15. h5 {[%clk 0:02:10]}  Rxh5 {[%clk 0:02:33]} 16. Qxg4 {[%clk 0:02:08]}  Rxh1 {[%clk 0:02:29]} 17. Rxh1 {[%clk 0:02:09]}  Qe7 {[%clk 0:02:29]} 18. Qe2 {[%clk 0:02:01]}  a5 {[%clk 0:02:16]} 19. Nf3 {[%clk 0:01:53]}  a4 {[%clk 0:02:15]} 20. a3 {[%clk 0:01:46]}  Qc5 {[%clk 0:02:14]} 21. Bg5 {[%clk 0:01:43]}  Qb5 {[%clk 0:02:13]} 22. Nd4 {[%clk 0:01:42]}  Qxe2 {[%clk 0:02:13]} 23. Nxe2 {[%clk 0:01:43]}  Kd7 {[%clk 0:02:13]} 24. Nf4 {[%clk 0:01:42]}  Bf5 {[%clk 0:02:12]} 25. Rh8 {[%clk 0:01:38]}  Re8 {[%clk 0:02:12]} 26. Nd3 {[%clk 0:01:36]}  Bxd3 {[%clk 0:02:06]} 27. cxd3 {[%clk 0:01:36]}  Be7 {[%clk 0:02:06]} 28. Rh7 {[%clk 0:01:30]}  Bxg5+ {[%clk 0:02:06]} 0-1